bitfinex-derivatives/quotes_SOLF0:USTF0_20251024
["timestamp","ask_amount","ask_price","bid_price","bid_amount"]
[1761310476266,2.83,193.46,193.39,7.343]
[1761310476656,2.83,193.44,193.36,4.6536]
[1761310477959,2.83,193.44,193.36,7.3436]
[1761310479863,2.83,193.44,193.38,2.69]
[1761310480362,2.83,193.44,193.38,7.3431]
[1761310480567,2.83,193.44,193.38,2.69]
[1761310481972,2.83,193.44,193.39,4.6529]
[1761310482169,4.044463,193.45,193.4,2.69]
[1761310482470,8.81132755,193.47,193.4,2.69]
[1761310482771,2.35087463,193.51,193.38,2.35087463]
[1761310482772,6.87363666,193.46,193.38,5.04087463]
[1761310482972,2.83,193.46,193.38,5.04087463]
[1761310483673,2.83,193.46,193.4,4.6526]
[1761310485775,4.03336239,193.47,193.42,2.69]
[1761310485976,2.83,193.49,193.42,2.69]
[1761310487170,2.83,193.47,193.4,4.6527]
[1761310487468,2.83,193.51,193.42,2.69]
[1761310487675,2.83,193.49,193.42,7.3423]
[1761310487871,2.83,193.49,193.42,2.69]
[1761310488072,2.83,193.49,193.43,4.652]
[1761310488970,2.83,193.49,193.41,4.6526]
[1761310489170,6.86370756,193.48,193.41,4.6526]
[1761310489378,2.83,193.48,193.42,2.69]
[1761310490981,2.83,193.46,193.39,4.653]
[1761310491776,2.83,193.46,193.4,4.6527]
[1761310493883,2.83,193.44,193.38,4.6532]
[1761310494877,2.83,193.44,193.36,7.3438]
[1761310495788,5.18087463,193.42,193.36,7.3438]
[1761310496975,2.83,193.41,193.36,2.69]
[1761310497278,5.18087463,193.39,193.31,2.66]
[1761310497571,2.83,193.38,193.31,2.66]
[1761310497773,2.35087463,193.36,193.27,0.90001552]
[1761310498086,2.83,193.35,193.25,2.66]
[1761310498483,2.83,193.35,193.28,4.6556]
[1761310499687,2.66,193.32,193.28,4.6556]
[1761310499986,2.66,193.32,193.28,7.2756]
[1761310500181,2.35087463,193.33,193.28,7.2756]
[1761310500383,5.01087463,193.36,193.29,2.62]
[1761310500586,2.35087463,193.36,193.3,2.62]
[1761310501382,2.35087463,193.39,193.3,2.62]
[1761310501587,5.01087463,193.45,193.3,2.62]
[1761310501889,5.01087463,193.45,193.33,2.62]
[1761310502184,4.02498525,193.47,193.35,2.62]
[1761310502380,2.35087463,193.46,193.35,2.62]
[1761310502690,5.01087463,193.46,193.35,2.62]
[1761310502986,2.66,193.45,193.35,2.62]
[1761310503186,2.66,193.45,193.39,4.6529]
[1761310503387,4.79725694,193.52,193.39,4.6529]
[1761310503589,5.01087463,193.48,193.4,2.62]
[1761310503885,5.01087463,193.48,193.4,7.2727]
[1761310504086,2.66,193.47,193.4,2.62]
[1761310505287,2.66,193.44,193.36,2.62]
[1761310505487,2.35087463,193.42,193.36,2.62]
[1761310507189,2.35087463,193.42,193.36,7.2736]
[1761310507491,2.66,193.41,193.28,2.62]
[1761310508082,2.35087463,193.39,193.28,2.62]
[1761310508388,2.66,193.38,193.28,2.62]
[1761310509792,2.35087463,193.36,193.28,2.62]
[1761310510591,2.35087463,193.36,193.32,2.62]
[1761310510881,5.01087463,193.36,193.24,0.90027163]
[1761310511092,5.01087463,193.36,193.26,2.62]
[1761310512082,5.01087463,193.36,193.31,4.6549]
[1761310512386,5.01087463,193.36,193.31,7.2749]
[1761310512590,2.66,193.36,193.31,7.2749]
[1761310513482,2.66,193.36,193.31,2.62]
[1761310513686,2.66,193.36,193.32,4.6546]
[1761310515888,2.66,193.36,193.25,62.0]
[1761310515889,2.66,193.32,193.24,0.90027163]
[1761310516196,2.66,193.32,193.25,2.62]
[1761310516492,2.66,193.32,193.26,7.2761]
[1761310516687,2.66,193.32,193.24,0.90027163]
[1761310516688,1.50608325,193.37,193.27,2.62]
[1761310516891,1.50608325,193.37,193.28,2.62]
[1761310517086,1.50608325,193.39,193.31,2.62]
[1761310517987,1.50608325,193.39,193.33,4.6544]
[1761310518995,1.50608325,193.41,193.33,2.62]
[1761310519191,4.0368791,193.4,193.33,2.62]
[1761310519387,4.0368791,193.39,193.33,2.62]
[1761310519586,6.30790064,193.43,193.35,2.62]
[1761310519792,4.03693041,193.42,193.35,2.62]
[1761310520095,4.03693041,193.41,193.35,2.62]
[1761310520292,1.50608325,193.43,193.35,2.62]
[1761310520493,4.03680358,193.42,193.35,2.62]
[1761310520689,4.03680358,193.41,193.36,4.6537]
[1761310520898,4.036723,193.42,193.37,2.62]
[1761310521096,1.50608325,193.43,193.37,2.62]
[1761310521297,2.66,193.44,193.37,2.62]
[1761310521494,1.50608325,193.45,193.38,1.50608325]
[1761310521687,10.50741,193.46,193.42,1.50608325]
[1761310521892,10.50741,193.46,193.43,2.62]
[1761310522187,10.50741,193.46,193.45,2.62]
[1761310524901,10.50741,193.46,193.36,62.0]
[1761310525096,10.50741,193.46,193.38,2.62]
[1761310526002,13.16741,193.46,193.38,2.62]
[1761310526207,2.66,193.45,193.38,2.62]
[1761310526997,2.66,193.43,193.34,2.62]
[1761310527389,2.66,193.43,193.35,4.654]
[1761310527588,2.66,193.41,193.34,2.62]
[1761310529104,2.66,193.41,193.34,7.2741]
[1761310529297,2.66,193.41,193.28,62.0]
[1761310529298,2.64,193.4,193.3,2.65]
[1761310529800,2.64,193.4,193.31,4.6548]
[1761310530305,4.03160786,193.39,193.31,4.6548]
[1761310530608,2.64,193.38,193.31,4.6548]
[1761310531508,2.64,193.38,193.3,2.65]
[1761310532095,2.64,193.38,193.31,4.6548]
[1761310533708,2.64,193.38,193.32,2.65]
[1761310533903,3.75990751,193.4,193.32,2.65]
[1761310534099,4.03247335,193.39,193.32,2.65]
[1761310534307,2.64,193.39,193.32,2.65]
[1761310534815,2.64,193.37,193.29,4.6555]
[1761310535509,2.64,193.37,193.29,7.3055]
[1761310535903,2.64,193.37,193.3,7.3051]
[1761310536104,2.64,193.37,193.31,2.65]
[1761310537018,2.64,193.37,193.31,7.3048]
[1761310537213,3.75990751,193.4,193.31,2.65]
[1761310537513,4.03321515,193.39,193.31,2.65]
[1761310537714,3.75990751,193.4,193.31,2.65]
[1761310537911,4.03317463,193.39,193.31,2.65]
[1761310538212,2.64,193.39,193.32,4.6546]
[1761310538808,2.64,193.39,193.32,7.3046]
[1761310539319,4.03372049,193.38,193.32,7.3046]
[1761310539520,2.64,193.37,193.29,2.65]
[1761310540117,7.44238216,193.39,193.29,2.65]
[1761310540311,6.67402851,193.38,193.31,4.6548]
[1761310540616,2.64,193.38,193.31,4.6548]
[1761310541312,2.64,193.38,193.3,2.65]
[1761310541517,2.64,193.36,193.3,2.65]
[1761310542212,2.64,193.36,193.29,4.6554]
[1761310546217,2.64,193.36,193.3,2.65]
[1761310546708,1.50651615,193.35,193.3,2.65]
[1761310546912,4.14651615,193.36,193.3,7.3051]
[1761310547509,4.14651615,193.36,193.31,4.6549]
[1761310547714,49.15725694,193.42,193.24,0.90027163]
[1761310547715,2.64,193.41,193.24,0.90027163]
[1761310547916,2.64,193.33,193.25,2.65]
[1761310548114,1.50651615,193.32,193.25,2.65]
[1761310548619,1.50651615,193.34,193.25,2.65]
[1761310548821,1.50651615,193.37,193.29,2.65]
[1761310549415,1.50651615,193.37,193.31,7.3048]
[1761310552518,2.64,193.36,193.26,4.6562]
[1761310552720,2.64,193.34,193.25,2.65]
[1761310552906,1.50651615,193.31,193.25,2.65]
[1761310553306,1.50651615,193.27,193.21,2.65]
[1761310553513,1.50651615,193.27,193.17,118.94619537]
[1761310553514,1.50651615,193.26,193.17,1.50651615]
[1761310553721,5.53747756,193.3,193.2,2.65]
[1761310553914,4.03096141,193.29,193.21,2.65]
[1761310554114,1.50651615,193.3,193.21,2.65]
[1761310554517,6.16191615,193.3,193.22,2.65]
[1761310554718,4.14651615,193.3,193.25,2.65]
[1761310555022,2.64,193.29,193.21,2.65]
[1761310555214,1.50651615,193.28,193.22,4.6571]
[1761310555826,1.50651615,193.28,193.22,7.3071]
[1761310556222,1.50651615,193.26,193.22,2.65]
[1761310556618,4.21651615,193.26,193.19,4.6579]
[1761310556823,4.21651615,193.26,193.19,7.4179]
[1761310557329,1.50651615,193.24,193.19,7.4179]
[1761310557522,4.21651615,193.24,193.19,7.4179]
[1761310557823,2.71,193.23,193.17,4.6583]
[1761310558021,4.79725694,193.31,193.18,2.76]
[1761310558218,3.98353781,193.3,193.22,2.76]
[1761310558417,1.50651615,193.31,193.22,2.76]
[1761310558724,3.98353781,193.32,193.15,0.90066774]
[1761310558725,1.50651615,193.23,193.16,2.76]
[1761310559019,2.71,193.27,193.16,2.76]
[1761310559219,1.50651615,193.23,193.16,2.76]
[1761310560228,1.50651615,193.21,193.16,2.76]
[1761310560928,2.69,193.2,193.16,2.76]
[1761310561128,1.50651615,193.19,193.12,2.6]
[1761310562126,2.69,193.2,193.12,2.6]
[1761310562428,1.50651615,193.22,193.14,2.6]
[1761310562625,1.50651615,193.23,193.14,2.6]
[1761310562929,2.69,193.24,193.14,2.6]
[1761310563730,2.69,193.23,193.14,2.6]
[1761310564930,2.69,193.23,193.11,0.90079596]
[1761310565139,4.79725694,193.29,193.05,7.2611]
[1761310565140,2.69,193.17,193.05,7.2611]
[1761310565430,2.69,193.17,193.06,2.6]
[1761310565621,2.69,193.17,192.97,3.7711458]
[1761310565622,2.69,193.17,193.05,2.6]
[1761310566226,3.7711458,193.16,193.05,2.6]
[1761310566432,2.69,193.15,193.05,2.6]
[1761310566624,2.69,193.15,193.07,2.6]
[1761310568431,2.69,193.14,193.03,2.6]
[1761310568623,2.69,193.14,192.99,62.0]
[1761310568624,2.69,193.14,193.01,0.90126254]
[1761310568824,2.69,193.14,193.02,2.6]
[1761310570532,2.69,193.14,193.04,4.6614]
[1761310570738,2.69,193.14,193.04,2.6]
[1761310570924,2.69,193.14,193.06,4.661]
[1761310571131,3.7711458,193.17,193.07,2.6]
[1761310571324,6.4611458,193.17,193.07,2.6]
[1761310571732,2.69,193.16,193.02,2.6]
[1761310572827,2.69,193.16,193.04,4.6613]
[1761310573723,2.69,193.12,193.03,2.6]
[1761310574336,2.69,193.12,193.03,7.2616]
[1761310574537,2.69,193.17,193.03,2.6]
[1761310574737,2.69,193.16,193.03,2.6]
[1761310575033,2.69,193.14,193.03,2.6]
[1761310575232,2.69,193.13,193.03,2.6]
[1761310575539,2.69,193.13,193.04,4.6613]
[1761310575734,2.69,193.13,193.03,2.6]
[1761310576630,2.69,193.12,193.03,2.6]
[1761310577033,4.66,193.11,193.03,2.6]
[1761310577230,2.69,193.14,193.03,2.6]
[1761310577431,2.69,193.12,193.03,2.6]
[1761310577626,4.6603,193.1,193.03,2.6]
[1761310577939,2.69,193.09,193.02,7.2618]
[1761310578534,7.3505,193.09,193.02,2.6]
[1761310579235,4.6612,193.06,193.01,0.6872637]
[1761310579435,2.69,193.05,192.96,2.6]
[1761310579635,2.69,193.07,192.96,2.6]
[1761310579837,6.69264555,193.07,192.96,4.6634]
[1761310580037,4.00264555,193.07,192.97,2.6]
[1761310580242,4.00264555,193.1,192.97,2.6]
[1761310580438,6.69264555,193.11,192.97,2.6]
[1761310581039,4.00264555,193.11,193.03,2.6]
[1761310581233,2.69,193.15,193.03,2.6]
[1761310581437,4.0006364,193.14,193.03,2.6]
[1761310581638,4.0006364,193.18,193.03,2.6]
[1761310581836,4.0006364,193.17,193.03,2.6]
[1761310582142,6.6906364,193.18,193.09,2.6]
[1761310582341,4.0006364,193.17,193.09,2.6]
[1761310582742,9.0496948,193.17,193.09,2.6]
[1761310582936,5.0490584,193.17,193.09,2.6]
[1761310583140,2.69,193.16,193.08,4.6605]
[1761310583340,2.69,193.13,193.05,2.6]
[1761310584343,2.69,193.13,193.06,4.661]
[1761310584541,4.00161681,193.16,193.07,2.6]
[1761310584854,4.00206748,193.18,193.07,2.6]
[1761310585049,2.69,193.19,193.07,2.6]
[1761310585244,2.69,193.19,193.09,2.6]
[1761310585454,4.00236102,193.18,193.09,2.6]
[1761310586453,4.00236102,193.17,193.09,2.6]
[1761310587152,10.48228,193.22,193.09,2.6]
[1761310587153,4.00236102,193.19,193.09,2.6]
[1761310587338,13.17228,193.22,193.09,2.6]
[1761310587339,4.00236102,193.21,193.09,2.6]
[1761310587536,4.00236102,193.21,193.04,2.6]
[1761310587744,13.17228,193.22,193.04,2.6]
[1761310587745,10.48228,193.22,193.06,2.6]
[1761310588342,10.48228,193.22,193.19,2.6]
[1761310588540,10.48228,193.22,193.06,2.6]
[1761310588748,2.69,193.21,193.06,2.6]
[1761310588940,6.69689954,193.21,193.06,2.6]
[1761310589549,2.69,193.21,193.13,2.61]
[1761310589862,10.48228,193.22,193.13,2.61]
[1761310590056,10.48228,193.22,193.13,62.0]
[1761310590258,10.48228,193.22,193.14,2.61]
[1761310590552,2.64,193.21,193.14,7.2689]
[1761310590949,2.64,193.21,193.06,2.61]
[1761310591153,2.64,193.21,193.12,4.6594]
[1761310592158,6.65334931,193.21,193.12,4.6594]
[1761310592348,6.65334931,193.21,193.12,7.2694]
[1761310592555,6.65334931,193.21,193.14,2.61]
[1761310593149,2.64,193.2,193.11,4.6598]
[1761310593357,2.64,193.18,193.1,2.61]
[1761310593657,2.64,193.16,193.04,2.61]
[1761310593850,2.64,193.16,193.05,62.0]
[1761310594054,2.64,193.16,193.06,2.61]
[1761310594453,2.64,193.15,193.07,4.6607]
[1761310596450,7.299,193.15,193.07,4.6607]
[1761310597062,4.03138501,193.14,193.07,4.6607]
[1761310597263,7.299,193.15,193.07,4.6607]
[1761310597450,4.03179766,193.14,193.07,4.6607]
[1761310597655,7.299,193.15,193.08,4.6604]
[1761310597956,4.03179813,193.14,193.08,4.6604]
[1761310598158,4.0350304,193.13,193.08,7.2704]
[1761310598462,7.299,193.15,193.08,7.2704]
[1761310598662,4.03541708,193.14,193.08,7.2704]
[1761310598863,4.03541708,193.13,193.09,7.2701]
[1761310599167,4.79725694,193.18,193.1,2.61]
[1761310599463,8.73908948,193.17,193.1,2.61]
[1761310599657,4.03680645,193.16,193.12,2.61]
[1761310599863,4.03680645,193.15,193.12,2.61]
[1761310600051,6.67072993,193.14,193.09,4.6602]
[1761310600255,6.67072993,193.14,193.05,2.61]
[1761310600256,6.6730424,193.13,193.05,2.61]
[1761310600456,4.0330424,193.12,193.05,2.61]
[1761310600763,2.64,193.13,193.05,2.61]
[1761310601062,4.03374668,193.12,193.05,2.61]
[1761310601255,4.03374668,193.11,193.05,2.61]
[1761310601456,2.64,193.13,193.05,2.61]
[1761310601656,2.64,193.11,193.06,4.6609]
[1761310602050,4.0380107,193.1,193.04,4.6615]
[1761310602257,2.64,193.11,193.04,4.6615]
[1761310602462,4.03837761,193.1,193.04,4.6615]
[1761310602664,2.64,193.11,193.04,4.6615]
[1761310602866,4.03824909,193.1,193.04,4.6615]
[1761310603165,4.03824909,193.09,193.04,7.2715]
[1761310603462,2.64,193.11,193.05,4.6611]
[1761310603664,11.45454385,193.1,193.05,4.6611]
[1761310603852,4.03965413,193.09,193.05,4.6611]
[1761310604055,2.64,193.09,193.05,4.6611]
[1761310604255,4.04129448,193.08,193.05,4.6611]
[1761310604452,4.6597,193.12,193.05,4.6611]
[1761310604453,9.45695694,193.12,193.05,4.6611]
[1761310604653,8.81817715,193.11,193.05,7.2711]
[1761310604853,8.81817715,193.1,193.06,7.2709]
[1761310605065,6.39749165,193.16,193.07,2.61]
[1761310605265,10.48228,193.22,193.12,2.36006137]
[1761310605456,4.77491067,193.21,193.17,2.61]
[1761310605761,10.48228,193.22,193.18,7.32667803]
[1761310605962,10.48228,193.22,193.19,4.71667803]
[1761310606164,10.48228,193.22,193.2,4.71667803]
[1761310606366,10.48228,193.22,193.21,4.71667803]
[1761310606568,10.48228,193.22,193.21,2.61]
[1761310607768,2.64,193.33,193.21,2.61]
[1761310607962,4.76955298,193.32,193.21,2.61]
[1761310608166,7.40955298,193.31,193.23,4.6567]
[1761310608470,4.76955298,193.3,193.23,4.6567]
[1761310608669,4.76955298,193.29,193.23,4.6567]
[1761310608867,2.64,193.31,193.23,4.6567]
[1761310609069,4.76679134,193.3,193.23,4.6567]
[1761310609371,2.64,193.31,193.23,4.6567]
[1761310609570,4.76424548,193.3,193.23,4.6567]
[1761310609771,2.64,193.31,193.21,2.61]
[1761310610967,2.64,193.31,193.21,7.2672]
[1761310611565,2.64,193.31,193.21,2.61]
[1761310611765,2.64,193.31,193.2,2.61]
[1761310611967,2.64,193.35,193.2,2.61]
[1761310612370,2.64,193.35,193.23,4.6569]
[1761310612872,2.64,193.35,193.23,7.2669]
[1761310614666,2.64,193.35,193.25,2.61]
[1761310617475,2.64,193.35,193.26,4.6562]
[1761310618277,2.64,193.35,193.26,7.2562]
[1761310618475,2.64,193.35,193.27,2.6]
[1761310624787,2.64,193.35,193.28,2.74]
[1761310625389,2.75,193.4,193.23,2.74]
[1761310625596,6.12510906,193.46,193.2,134.4526]
[1761310625597,2.75,193.44,193.27,2.74]
[1761310625892,2.75,193.4,193.29,2.74]
[1761310626195,2.75,193.4,193.25,2.74]
[1761310626495,4.6538,193.37,193.23,2.74]
[1761310626790,4.6538,193.37,193.25,2.74]
[1761310626995,4.6538,193.37,193.31,2.74]
[1761310627193,7.00708456,193.39,193.31,2.74]
[1761310627692,4.6527,193.41,193.33,2.74]
[1761310628289,7.403,193.4,193.33,2.74]
[1761310629797,7.4033,193.39,193.33,2.74]
[1761310630103,2.35388456,193.36,193.25,2.74]
[1761310630586,2.35388456,193.36,193.3,4.6551]
[1761310630991,4.6541,193.35,193.28,2.74]
[1761310631195,4.6541,193.35,193.29,4.6554]
[1761310631499,5.10388456,193.36,193.29,7.3954]
[1761310632199,2.75,193.35,193.27,4.6559]
[1761310632388,2.75,193.35,193.27,7.3959]
[1761310633799,2.35388456,193.36,193.21,2.35388456]
[1761310633800,5.47862,193.46,193.45,4.6516]
[1761310634001,9.59623747,193.66,193.47,2.74]
[1761310634304,15.51,193.73,193.53,2.35388456]
[1761310634506,2.35388456,193.69,193.51,2.74]
[1761310634692,2.35388456,193.69,193.52,5.55596467]
[1761310635000,2.35388456,193.66,193.53,5.55596467]
[1761310635202,2.35388456,193.66,193.54,5.55596467]
[1761310635503,15.51,193.72,193.55,5.55596467]
[1761310635695,2.35388456,193.69,193.56,5.55596467]
[1761310635897,2.75,193.68,193.57,5.55596467]
[1761310636098,2.75,193.68,193.58,5.55596467]
[1761310636395,2.75,193.68,193.59,5.55596467]
[1761310636593,2.75,193.68,193.6,5.35518924]
[1761310636796,2.75,193.67,193.5,2.74]
[1761310637897,2.75,193.67,193.5,4.6503]
[1761310638098,2.75,193.67,193.51,2.74]
[1761310638298,2.75,193.67,193.52,2.74]
[1761310638802,2.75,193.67,193.53,2.74]
[1761310639009,2.75,193.67,193.54,7.3894]
[1761310640112,2.75,193.67,193.56,8.40425347]
[1761310640401,2.75,193.67,193.57,2.74]
[1761310644205,2.75,193.67,193.59,2.74]
[1761310644710,47.33,193.72,193.61,2.74]
[1761310645211,47.33,193.72,193.63,2.74]
[1761310645510,2.75,193.72,193.64,3.75535347]
[1761310645812,2.75,193.75,193.65,2.74]
[1761310646310,2.75,193.75,193.62,3.75535347]
[1761310646710,2.75,193.75,193.62,6.49535347]
[1761310647509,2.75,193.75,193.62,2.74]
[1761310648704,2.75,193.75,193.63,4.76871746]
[1761310648900,2.75,193.75,193.64,4.76871746]
[1761310649109,2.75,193.75,193.65,4.76871746]
[1761310649413,2.83,193.86,193.69,3.75535347]
[1761310649619,2.83,193.86,193.74,2.79]
[1761310649814,2.83,193.86,193.76,2.79]
[1761310650111,2.83,193.86,193.78,2.79]
[1761310650318,2.83,193.86,193.79,4.76871746]
[1761310650517,2.83,193.86,193.8,4.76871746]
[1761310650709,2.83,193.86,193.81,4.76871746]
[1761310650909,2.83,193.94,193.82,4.76871746]
[1761310651214,2.83,193.94,193.83,4.76871746]
[1761310651523,2.83,193.94,193.84,4.76871746]
[1761310651715,2.83,193.94,193.79,2.79]
[1761310651909,2.83,193.94,193.8,4.75130886]
[1761310652223,44.66,193.93,193.81,4.75130886]
[1761310652415,2.83,193.92,193.82,4.75130886]
[1761310652611,2.83,193.92,193.79,2.79]
[1761310652920,2.83,193.92,193.8,4.74631262]
[1761310653106,2.83,193.92,193.81,4.74631262]
[1761310653310,2.83,193.92,193.82,4.74631262]
[1761310653511,2.83,193.9,193.79,2.79]
[1761310653712,2.83,193.9,193.8,4.74290602]
[1761310653909,47.47,193.9,193.81,4.74290602]
[1761310654114,2.83,193.89,193.79,2.79]
[1761310654421,2.83,193.89,193.8,4.73918602]
[1761310654715,2.83,193.89,193.79,2.79]
[1761310654916,2.83,193.89,193.8,4.73974033]
[1761310655112,2.83,193.89,193.75,2.79]
[1761310655310,2.83,193.89,193.76,4.73875032]
[1761310655516,2.83,193.87,193.77,4.73875032]
[1761310655711,2.83,193.87,193.78,4.73875032]
[1761310655909,2.83,193.87,193.79,4.73875032]
[1761310656107,2.83,193.87,193.75,2.79]
[1761310656308,2.83,193.86,193.76,4.73655341]
[1761310656518,2.83,193.86,193.74,2.32617]
[1761310656719,2.83,193.82,193.74,2.32617]
[1761310657924,6.58535347,193.79,193.74,2.32617]
[1761310658122,3.75535347,193.79,193.74,5.11617]
[1761310658513,2.83,193.83,193.74,5.11617]
[1761310658514,3.75535347,193.81,193.74,5.11617]
[1761310659525,6.58535347,193.81,193.74,2.32617]
[1761310659714,2.83,193.8,193.74,2.32617]
[1761310660028,2.83,193.75,193.53,2.79]
[1761310660215,2.83,193.7,193.58,2.79]
[1761310660415,2.83,193.7,193.59,4.75055377]
[1761310660615,2.83,193.7,193.6,4.75055377]
[1761310660616,3.75535347,193.67,193.6,4.75055377]
[1761310660817,3.75535347,193.67,193.61,4.75055377]
[1761310661017,6.58535347,193.67,193.62,4.75055377]
[1761310661213,6.58535347,193.67,193.63,4.75055377]
[1761310661416,6.58535347,193.67,193.58,2.79]
[1761310661619,6.58535347,193.67,193.59,4.75500845]
[1761310661815,6.58535347,193.67,193.6,4.75500845]
[1761310662127,6.58535347,193.67,193.61,4.75500845]
[1761310662327,2.83,193.66,193.62,4.75500845]
[1761310662522,2.83,193.66,193.63,4.75500845]
[1761310662727,2.83,193.66,193.58,2.79]
[1761310662928,2.83,193.66,193.59,4.75863867]
[1761310663127,2.83,193.66,193.58,2.79]
[1761310663128,2.83,193.66,193.6,4.75863867]
[1761310663314,2.83,193.66,193.61,4.75863867]
[1761310663520,2.83,193.66,193.58,2.79]
[1761310663521,2.83,193.66,193.62,4.75863867]
[1761310663827,2.83,193.66,193.63,4.75863867]
[1761310664017,2.83,193.66,193.58,2.79]
[1761310664215,2.83,193.66,193.59,4.76185564]
[1761310664513,2.83,193.66,193.6,4.76185564]
[1761310664718,2.83,193.66,193.61,4.76185564]
[1761310664921,2.83,193.66,193.62,4.76185564]
[1761310665124,2.83,193.66,193.63,4.76185564]
[1761310665323,2.83,193.66,193.58,2.79]
[1761310665518,2.83,193.66,193.59,4.76684481]
[1761310665726,2.83,193.66,193.6,4.76684481]
[1761310665926,2.83,193.66,193.61,4.76684481]
[1761310666127,2.83,193.66,193.62,4.76684481]
[1761310666329,2.83,193.66,193.63,4.76684481]
[1761310666527,2.83,193.66,193.64,4.76684481]
[1761310666726,2.83,193.66,193.58,2.79]
[1761310666933,2.83,193.66,193.59,4.77085082]
[1761310667132,2.83,193.66,193.6,4.77085082]
[1761310667332,2.83,193.66,193.61,4.77085082]
[1761310667629,2.83,193.66,193.62,4.77085082]
[1761310667831,2.83,193.66,193.63,4.77085082]
[1761310668031,2.83,193.66,193.64,4.77085082]
[1761310668235,2.83,193.66,193.65,4.77085082]
[1761310668431,2.83,193.66,193.54,2.79]
[1761310669027,2.83,193.65,193.54,2.79]
[1761310669525,6.58535347,193.64,193.54,2.79]
[1761310669726,2.83,193.63,193.54,2.79]
[1761310671338,2.83,193.63,193.47,2.79]
[1761310671831,2.83,193.63,193.49,4.6504]
[1761310672031,2.83,193.63,193.5,2.79]
[1761310672726,2.83,193.63,193.5,4.6502]
[1761310673029,2.83,193.63,193.51,2.79]
[1761310676537,2.83,193.63,193.48,2.59]
[1761310677329,3.75535347,193.61,193.48,2.59]
[1761310677529,2.79,193.6,193.48,2.59]
[1761310679434,2.79,193.6,193.48,7.2407]
[1761310679630,2.79,193.6,193.49,2.82]
[1761310679826,2.79,193.6,193.46,2.82]
[1761310680230,2.79,193.6,193.47,2.82]
[1761310680740,2.79,193.6,193.51,2.82]
[1761310684040,2.83,193.63,193.51,2.82]
[1761310684943,2.83,193.63,193.52,2.82]
[1761310685342,2.83,193.63,193.53,4.6496]
[1761310685645,2.83,193.63,193.54,2.82]
[1761310686155,3.75535347,193.62,193.49,2.82]
[1761310686344,2.83,193.61,193.49,2.82]
[1761310686640,2.83,193.61,193.51,4.65]
[1761310686845,2.83,193.61,193.52,2.82]
[1761310691856,2.83,193.61,193.45,2.82]
[1761310692151,19.26535347,193.66,193.46,2.82]
[1761310692152,2.83,193.58,193.46,2.82]
[1761310692743,4.33364309,193.55,193.46,4.32364309]
[1761310693253,4.33364309,193.55,193.47,2.82]
[1761310694454,2.83,193.54,193.47,2.82]
[1761310695949,4.33364309,193.51,193.43,2.82]
[1761310696657,2.83,193.51,193.44,4.32364309]
[1761310696851,2.83,193.5,193.44,2.82]
[1761310700162,2.83,193.5,193.44,4.32364309]
[1761310700862,2.83,193.5,193.44,2.82]